{"text_format":"1","workbook":"xlsx","n_sheets":2,"sheets":["Analiza profitabilității","Diagramă Rezumat măsurători"],"not_rendered":{"charts":1,"images":0,"macros":0,"external_links":0,"defined_names":2,"comments":0,"pivot_tables":0},"unopened":[],"bounds":{"document_bytes":16777216,"sheet_cells":100000,"rows_first":2000,"rows_last":500,"rows_between":2000,"halvings":0,"cell_chars":16384,"cell_head_chars":4096},"cells_cut":0,"cells_raw":0,"read":"whole","date_system":"1900"}

{"sheet":"Analiza profitabilității","index":0,"n_rows":36,"n_cols":8,"rows_kept":36,"cut":false,"hidden":false,"merged":[[30,1,30,5],[2,3,2,7],[10,1,10,5],[14,1,14,5],[21,1,21,5],[27,1,27,5]]}
[]
[null,"Analiza profitabilității relativ la clienți"]
[null,"20 IANUARIE 2013",null,"NUME FIRMĂ"]
[]
[]
[null,"Activitate client","Client 1","Client 2","Client 3","General",null," "]
[null,"Număr de clienți activi - începutul perioadei",5,8,8,{"$f":"SUM(C7:E7)","v":21}]
[null,"Număr de clienți adăugați",2,4,4,{"$f":"SUM(C8:E8)","v":10}]
[null,"Număr de clienți pierduți/relație terminată",-1,-2,-2,-5]
[null,"Număr de clienți activi - sfârșitul perioadei",{"$f":"SUBTOTAL(109,'Analiza profitabilității'!$C$7:$C$9)","v":6},{"$f":"SUBTOTAL(109,'Analiza profitabilității'!$D$7:$D$9)","v":10},{"$f":"SUBTOTAL(109,'Analiza profitabilității'!$E$7:$E$9)","v":10},26]
[]
[null,"Analiza profitabilității"," ","  ","   ","    "]
[null,"Venit per segment",1500000,1800000,2500000,{"$f":"SUM('Analiza profitabilității'!$C13:$E13)","v":5800000}]
[null,"Pondere",{"$f":"C13/$F$13","v":0.25862068965517243},{"$f":"D13/$F$13","v":0.31034482758620691},0.43103448275862066,{"$f":"SUM(C14:E14)","v":1}]
[]
[null,"Costul vânzărilor"," ","  ","   ","    "]
[null,"Costuri de asistență și servicii regulate",1000000,1400000,1400000,{"$f":"SUM('Analiza profitabilității'!$C17:$E17)","v":3800000}]
[null,"Alte costuri directe cu clienții",200000,100000,100000,{"$f":"SUM('Analiza profitabilității'!$C18:$E18)","v":400000}]
[null,"Costul total al vânzărilor",{"$f":"SUBTOTAL(109,'Analiza profitabilității'!$C$17:$C$18)","v":1200000},{"$f":"SUBTOTAL(109,'Analiza profitabilității'!$D$17:$D$18)","v":1500000},{"$f":"SUBTOTAL(109,'Analiza profitabilității'!$E$17:$E$18)","v":1500000},{"$f":"SUBTOTAL(109,'Analiza profitabilității'!$F$17:$F$18)","v":4200000}]
[null,"Marjă brută",{"$f":"C13-'Analiza profitabilității'!$C$19","v":300000},{"$f":"D13-'Analiza profitabilității'!$D$19","v":300000},{"$f":"E13-'Analiza profitabilității'!$E$19","v":1000000},{"$f":"F13-'Analiza profitabilității'!$F$19","v":1600000}]
[null,"Pondere",{"$f":"MAX(0,MIN(1,C20/$F$20))","v":0.1875},{"$f":"MAX(0,MIN(1,D20/$F$20))","v":0.1875},0.625,{"$f":"SUM('Analiza profitabilității'!$C21:$E21)","v":1}]
[]
[null,"Alte costuri"," ","  ","   ","    "]
[null,"Atragere clienți",105000,120000,235000,{"$f":"SUM('Analiza profitabilității'!$C24:$E24)","v":460000}]
[null,"Marketing pentru clienți",150000,125000,275000,{"$f":"SUM('Analiza profitabilității'!$C25:$E25)","v":550000}]
[null,"Relații terminate clienți",80000,190000,140000,{"$f":"SUM('Analiza profitabilității'!$C26:$E26)","v":410000}]
[null,"Total alte costuri cu clienții",{"$f":"SUBTOTAL(109,'Analiza profitabilității'!$C$24:$C$26)","v":335000},{"$f":"SUBTOTAL(109,'Analiza profitabilității'!$D$24:$D$26)","v":435000},{"$f":"SUBTOTAL(109,'Analiza profitabilității'!$E$24:$E$26)","v":650000},{"$f":"SUBTOTAL(109,'Analiza profitabilității'!$F$24:$F$26)","v":1420000}]
[]
[null,"Profit relativ la clienți după segment",{"$f":"C20-C27","v":-35000},{"$f":"D20-D27","v":-135000},{"$f":"E20-E27","v":350000},{"$f":"F20-'Analiza profitabilității'!$F$27","v":180000}]
[null,"Pondere",{"$f":"MAX(0,MIN(1,C29/$F$29))","v":0},{"$f":"MAX(0,MIN(1,D29/$F$29))","v":0},1,{"$f":"SUM('Analiza profitabilității'!$C30:$E30)","v":1}]
[]
[null,"Rezumat măsurători"]
[null,"Cost mediu per client atras",{"$f":"C24/C8","v":52500},{"$f":"D24/D8","v":30000},{"$f":"E24/E8","v":58750}]
[null,"Cost mediu per client pierdut",{"$f":"-C26/C9","v":80000},{"$f":"-D26/D9","v":95000},{"$f":"-E26/E9","v":70000}]
[null,"Cost mediu marketing per client activ",{"$f":"C25/'Analiza profitabilității'!$C$10","v":25000},{"$f":"D25/'Analiza profitabilității'!$D$10","v":12500},{"$f":"E25/'Analiza profitabilității'!$E$10","v":27500}]
[null,"Profit mediu sau pierdere medie per client",{"$f":"C29/'Analiza profitabilității'!$C$10","v":-5833.333333333333},{"$f":"D29/'Analiza profitabilității'!$D$10","v":-13500},{"$f":"E29/'Analiza profitabilității'!$E$10","v":35000}]

{"sheet":"Diagramă Rezumat măsurători","index":1,"n_rows":3,"n_cols":18,"rows_kept":3,"cut":false,"hidden":false,"merged":[]}
[]
[null,"Rezumat măsurători per client",null,null,null,null,null,null,null,null,null,null,null,null,null," "]
[null,{"$f":"DataRaport","v":"20 IANUARIE 2013"},null,null,null,null,null,null,null,null,null,null,null,null,null,null,null,{"$f":"NumeFirmă","v":"NUME FIRMĂ"}]